fUST/lending_fUST_20250530
["ID","MTS","AMOUNT","RATE_DAILY","PERIOD"]
[363066864,1748565053507,-1178.01,0.00021917,2]
[363066865,1748565053516,-687.18,0.00021917,2]
[363066866,1748565053525,-598.52,0.00021917,2]
[363066867,1748565053535,-556.87,0.00021917,2]
[363066868,1748565053544,-430.0,0.00021917,2]
[363066869,1748565053553,-1193.21,0.00021917,2]
[363066870,1748565053563,-430.0,0.00021917,2]
[363066871,1748565053572,-430.0,0.00021917,2]
[363066872,1748565053582,-430.0,0.00021917,2]
[363066873,1748565053591,-1220.26,0.00021917,2]
[363066874,1748565053600,-430.0,0.00021917,2]
[363066875,1748565053610,-2058.47,0.00021917,2]
[363066876,1748565053620,-613.5,0.00021917,2]
[363066877,1748565053630,-430.0,0.00021917,2]
[363066878,1748565053638,-1480.27,0.00021917,2]
[363066879,1748565053647,-751.52,0.00021917,2]
[363066880,1748565053657,-1195.51,0.00021917,2]
[363066881,1748565053666,-430.0,0.00021917,2]
[363066882,1748565053675,-520.16,0.00021917,2]
[363066883,1748565053685,-1120.97,0.00021917,2]
[363066884,1748565053694,-430.0,0.00021917,2]
[363066885,1748565053704,-430.0,0.00021917,2]
[363066886,1748565053713,-430.0,0.00021917,2]
[363066887,1748565053723,-430.0,0.00021917,2]
[363066888,1748565053733,-430.0,0.00021917,2]
[363066889,1748565053742,-232.96,0.00021917,2]
[363066890,1748565053751,-430.0,0.00021917,2]
[363066891,1748565053761,-793.82,0.00021917,2]
[363066892,1748565053770,-430.0,0.00021917,2]
[363066893,1748565053779,-891.93,0.00021917,2]
[363066894,1748565053788,-430.0,0.00021917,2]
[363066895,1748565053798,-430.0,0.00021917,2]
[363066896,1748565053807,-430.0,0.00021917,2]
[363066897,1748565053817,-747.87,0.00021917,2]
[363066898,1748565053826,-430.0,0.00021917,2]
[363066899,1748565053835,-430.0,0.00021917,2]
[363066900,1748565053845,-430.0,0.00021917,2]
[363066901,1748565053855,-201.14372197,0.00021918,2]
[363066902,1748565053864,-500.0,0.00021929,2]
[363066903,1748565053873,-200.076931,0.00022,7]
[363066904,1748565053882,-151.0,0.00022,7]
[363066905,1748565053891,-200.076931,0.00022,7]
[363066906,1748565053900,-694.063326,0.00022,7]
[363066907,1748565053910,-694.063326,0.00022,7]
[363066908,1748565053919,-834.0,0.00022,2]
[363066909,1748565053928,-942.336492,0.00022,7]
[363066910,1748565053938,-942.336492,0.00022,7]
[363066911,1748565053947,-151.51476,0.00022,7]
[363066912,1748565053956,-151.51476,0.00022,7]
[363066913,1748565053965,-44412.13174909,0.00022,2]
[363066914,1748565053975,-500.0,0.00022059,2]
[363066915,1748565053984,-1000.0,0.00022148,2]
[363066916,1748565053993,-216.48034346,0.00022191,30]
[363066917,1748565054002,-315.31411708,0.00022191,2]
[363066918,1748565054012,-430.0,0.00022191,2]
[363066919,1748565054021,-430.0,0.00022191,2]
[363066920,1748565054031,-430.0,0.00022191,2]
[363066921,1748565054040,-430.0,0.00022191,2]
[363066922,1748565054049,-430.0,0.00022191,2]
[363066923,1748565054058,-430.0,0.00022191,2]
[363066924,1748565054067,-430.0,0.00022191,2]
[363066925,1748565054076,-430.0,0.00022191,2]
[363066926,1748565054085,-1720.94,0.00022191,2]
[363066927,1748565054095,-430.0,0.00022191,2]
[363066928,1748565054104,-1567.19,0.00022191,2]
[363066929,1748565054113,-433.91,0.00022191,2]
[363066930,1748565054123,-2408.54,0.00022191,2]
[363066931,1748565054132,-740.37,0.00022191,2]
[363066932,1748565054141,-504.24,0.00022191,2]
[363066933,1748565054151,-1178.01,0.00022191,2]
[363066934,1748565054161,-687.18,0.00022191,2]
[363066935,1748565054171,-598.52,0.00022191,2]
[363066936,1748565054180,-430.0,0.00022191,2]
[363066937,1748565054191,-556.87,0.00022191,2]
[363066938,1748565054204,-1193.21,0.00022191,2]
[363066939,1748565054215,-430.0,0.00022191,2]
[363066940,1748565054224,-430.0,0.00022191,2]
[363066941,1748565054234,-430.0,0.00022191,2]
[363066942,1748565054243,-1220.26,0.00022191,2]
[363066943,1748565054253,-430.0,0.00022191,2]
[363066944,1748565054262,-2058.47,0.00022191,2]
[363066945,1748565054273,-613.5,0.00022191,2]
[363066946,1748565054285,-1480.27,0.00022191,2]
[363066947,1748565054295,-751.52,0.00022191,2]
[363066948,1748565054304,-1195.51,0.00022191,2]
[363066949,1748565054314,-430.0,0.00022191,2]
[363066950,1748565054323,-520.16,0.00022191,2]
[363066951,1748565054333,-1120.97,0.00022191,2]
[363066952,1748565054342,-522.78,0.00022191,2]
[363066953,1748565054352,-430.0,0.00022191,2]
[363066954,1748565054361,-430.0,0.00022191,2]
[363066955,1748565054370,-430.0,0.00022191,2]
[363066956,1748565054379,-430.0,0.00022191,2]
[363066957,1748565054389,-430.0,0.00022191,2]
[363066958,1748565054398,-793.82,0.00022191,2]
[363066959,1748565054408,-415.04,0.00022191,2]
[363066960,1748565054417,-891.93,0.00022191,2]
[363066961,1748565054426,-439.84,0.00022191,2]
[363066962,1748565054435,-430.0,0.00022191,2]
[363066963,1748565054444,-430.0,0.00022191,2]
[363066964,1748565054453,-747.87,0.00022191,2]
[363066965,1748565054463,-430.0,0.00022191,2]
[363066966,1748565054472,-430.0,0.00022191,2]
[363066967,1748565054481,-377.38,0.00022191,2]
[363066968,1748565054491,-1184.26802109,0.00022256,2]
[363066969,1748565054500,-500.0,0.00022278,2]
[363066970,1748565054509,-200.076931,0.00022465,7]
[363066971,1748565054518,-151.0,0.00022465,7]
[363066972,1748565054528,-200.076931,0.00022465,7]
[363066973,1748565054536,-694.063326,0.00022465,7]
[363066974,1748565054545,-694.063326,0.00022465,7]
[363066975,1748565054555,-942.336492,0.00022465,7]
[363066976,1748565054564,-942.336492,0.00022465,7]
[363066977,1748565054573,-151.51476,0.00022465,7]
[363066978,1748565054583,-151.51476,0.00022465,7]
[363066979,1748565054592,-430.0,0.00022465,2]
[363066980,1748565054603,-430.0,0.00022465,2]
[363066981,1748565054612,-430.0,0.00022465,2]
[363066982,1748565054621,-430.0,0.00022465,2]
[363066983,1748565054630,-430.0,0.00022465,2]
[363066984,1748565054640,-430.0,0.00022465,2]
[363066985,1748565054649,-430.0,0.00022465,2]
[363066986,1748565054658,-430.0,0.00022465,2]
[363066987,1748565054668,-1720.94,0.00022465,2]
[363066988,1748565054677,-430.0,0.00022465,2]
[363066989,1748565054686,-1567.19,0.00022465,2]
[363066990,1748565054696,-433.91,0.00022465,2]
[363066991,1748565054704,-2408.54,0.00022465,2]
[363066992,1748565054714,-740.37,0.00022465,2]
[363066993,1748565054723,-504.24,0.00022465,2]
[363066994,1748565054732,-1178.01,0.00022465,2]
[363066995,1748565054827,-687.18,0.00022465,2]
[363066996,1748565054837,-598.52,0.00022465,2]
[363066997,1748565054847,-430.0,0.00022465,2]
[363066998,1748565054857,-556.87,0.00022465,2]
[363066999,1748565054867,-1193.21,0.00022465,2]
[363067000,1748565054876,-430.0,0.00022465,2]
[363067001,1748565054886,-430.0,0.00022465,2]
[363067002,1748565054895,-430.0,0.00022465,2]
[363067003,1748565054905,-1220.26,0.00022465,2]
[363067004,1748565054914,-430.0,0.00022465,2]
[363067005,1748565054924,-2058.47,0.00022465,2]
[363067006,1748565054934,-613.5,0.00022465,2]
[363067007,1748565054943,-1480.27,0.00022465,2]
[363067008,1748565054953,-751.52,0.00022465,2]
[363067009,1748565054963,-1195.51,0.00022465,2]
[363067010,1748565054972,-430.0,0.00022465,2]
[363067011,1748565054982,-520.16,0.00022465,2]
[363067012,1748565054991,-1120.97,0.00022465,2]
[363067013,1748565055000,-174.41272146,0.00022465,2]
[363067014,1748565055010,-430.0,0.00022465,2]
[363067015,1748565055019,-430.0,0.00022465,2]
[363067016,1748565055028,-430.0,0.00022465,2]
[363067017,1748565055037,-430.0,0.00022465,2]
[363067018,1748565055046,-793.82,0.00022465,2]
[363067019,1748565055056,-891.93,0.00022465,2]
[363067020,1748565055065,-430.0,0.00022465,2]
[363067021,1748565055074,-150.69,0.00022465,2]
[363067022,1748565055083,-747.87,0.00022465,2]
[363067023,1748565055092,-529.41,0.00022465,2]
[363067024,1748565055103,-430.0,0.00022465,2]
[363067025,1748565055112,-816.11,0.00022466,2]
[363067026,1748565055121,-1000.0,0.00022477,2]
[363067027,1748565055131,-4959.21,0.000225,2]
[363067028,1748565055140,-212.70147903,0.00022555,7]
[363067029,1748565055150,-608.611,0.00022605,2]
[363067030,1748565055159,-405.0,0.00022605,2]
[363067031,1748565055168,-258.768,0.00022605,2]
[363067032,1748565055177,-187.72,0.00022737,2]
[363067033,1748565055187,-200.076931,0.00022738,7]
[363067034,1748565055197,-200.076931,0.00022738,7]
[363067035,1748565055207,-694.063326,0.00022739,7]
[363067036,1748565055217,-694.063326,0.00022739,7]
[363067037,1748565055226,-942.336492,0.00022739,7]
[363067038,1748565055235,-942.336492,0.00022739,7]
[363067039,1748565055244,-842.5625,0.00022739,7]
[363067040,1748565055254,-151.51476,0.00022739,7]
[363067041,1748565055263,-151.51476,0.00022739,7]
[363067042,1748565055273,-430.0,0.00022739,2]
[363067043,1748565055283,-430.0,0.00022739,2]
[363067044,1748565055293,-430.0,0.00022739,2]
[363067045,1748565055303,-430.0,0.00022739,2]
[363067046,1748565055312,-430.0,0.00022739,2]
[363067047,1748565055322,-430.0,0.00022739,2]
[363067048,1748565055331,-430.0,0.00022739,2]
[363067049,1748565055340,-430.0,0.00022739,2]
[363067050,1748565055350,-1720.94,0.00022739,2]
[363067051,1748565055361,-430.0,0.00022739,2]
[363067052,1748565055371,-1567.19,0.00022739,2]
[363067053,1748565055380,-433.91,0.00022739,2]
[363067054,1748565055390,-2408.54,0.00022739,2]
[363067055,1748565055399,-740.37,0.00022739,2]
[363067056,1748565055408,-504.24,0.00022739,2]
[363067057,1748565055418,-1178.01,0.00022739,2]
[363067058,1748565055428,-687.18,0.00022739,2]
[363067059,1748565055438,-598.52,0.00022739,2]
[363067060,1748565055447,-430.0,0.00022739,2]
[363067061,1748565055456,-556.87,0.00022739,2]
[363067062,1748565055466,-1193.21,0.00022739,2]
[363067063,1748565055475,-430.0,0.00022739,2]
[363067064,1748565055485,-354.95,0.00022739,2]
[363067065,1748565055495,-1220.26,0.00022739,2]
[363067066,1748565055504,-430.0,0.00022739,2]
[363067067,1748565055515,-2058.47,0.00022739,2]
[363067068,1748565055524,-613.5,0.00022739,2]
[363067069,1748565055533,-1480.27,0.00022739,2]
[363067070,1748565055543,-751.52,0.00022739,2]
[363067071,1748565055552,-1195.51,0.00022739,2]
[363067072,1748565055563,-430.0,0.00022739,2]
[363067073,1748565055572,-520.16,0.00022739,2]
[363067074,1748565055582,-1120.97,0.00022739,2]
[363067075,1748565055591,-430.0,0.00022739,2]
[363067076,1748565055601,-430.0,0.00022739,2]
[363067077,1748565055610,-430.0,0.00022739,2]
[363067078,1748565055619,-430.0,0.00022739,2]
[363067079,1748565055629,-793.82,0.00022739,2]
[363067080,1748565055638,-891.93,0.00022739,2]
[363067081,1748565055647,-430.0,0.00022739,2]
[363067082,1748565055656,-747.87,0.00022739,2]
[363067083,1748565055666,-430.0,0.00022739,2]
[363067084,1748565055675,-587.0,0.0002277,2]
[363067085,1748565055685,-215.0738,0.00022798,2]
[363067086,1748565055694,-96441.45,0.000228,7]
[363067087,1748565055703,-893.06,0.000228,7]
[363067088,1748565055712,-3898.16,0.000228,7]
[363067089,1748565055722,-1000.0,0.00022847,2]
[363067090,1748565055731,-364.176416,0.00022849,2]
[363067091,1748565055740,-364.176416,0.00022849,2]
[363067092,1748565055749,-363.3436958,0.00022849,2]
[363067093,1748565055758,-43160.26901309,0.00022879,2]
[363067094,1748565055959,-73.42852993,0.00022879,2]
[363067095,1748565056314,-480.40700973,0.00019178,2]
[363067096,1748565056323,-430.0,0.00019178,2]
[363067097,1748565056332,-430.0,0.00019178,2]
[363067098,1748565056342,-430.0,0.00019178,2]
[363067099,1748565056352,-430.0,0.00019178,2]
[363067100,1748565056361,-430.0,0.00019178,2]
[363067101,1748565056371,-430.0,0.00019452,2]
[363067102,1748565056380,-430.0,0.00019726,2]
[363067103,1748565056389,-7980.78075241,0.00022879,2]
[363067104,1748565056756,-430.0,0.00019178,2]
[363067105,1748565056766,-430.0,0.00019178,2]
[363067106,1748565056775,-430.0,0.00019178,2]
[363067107,1748565056784,-430.0,0.00019452,2]
[363067108,1748565056794,-430.0,0.00019452,2]
[363067109,1748565056803,-430.0,0.00019452,2]
[363067110,1748565056813,-480.35623866,0.00019726,2]
[363067111,1748565056822,-430.0,0.00019726,2]
[363067112,1748565056831,-430.0,0.0002,2]
[363067113,1748565056841,-430.0,0.0002,2]
[363067114,1748565056854,-430.0,0.00020273,2]
[363067115,1748565056863,-430.0,0.00020273,2]
[363067116,1748565056873,-430.0,0.00020547,2]
[363067117,1748565056882,-521.54,0.00020547,2]
[363067118,1748565056892,-430.0,0.00020821,2]
[363067119,1748565056901,-430.0,0.00021095,2]
[363067120,1748565056911,-430.0,0.00021369,2]
[363067121,1748565056921,-430.0,0.00021643,2]
[363067122,1748565056931,-430.0,0.00021917,2]
[363067123,1748565056942,-430.0,0.00022191,2]
[363067124,1748565056951,-232920.85050969,0.00022879,2]
[363067125,1748565056960,-3408.04572585,0.0002298,2]
[363067126,1748565056970,-243.37510752,0.00023,8]
[363067127,1748565056979,-500.0,0.00023,8]
[363067128,1748565056988,-186.0,0.00023,7]
[363067129,1748565056997,-24310.05852652,0.00023,2]
[363067130,1748565057007,-430.0,0.00023013,2]
[363067131,1748565057016,-430.0,0.00023013,2]
[363067132,1748565057025,-430.0,0.00023013,2]
[363067133,1748565057034,-430.0,0.00023013,2]
[363067134,1748565057043,-430.0,0.00023013,2]
[363067135,1748565057052,-430.0,0.00023013,2]
[363067136,1748565057061,-430.0,0.00023013,2]
[363067137,1748565057070,-430.0,0.00023013,2]
[363067138,1748565057079,-430.0,0.00023013,2]
[363067139,1748565057089,-433.91,0.00023013,2]
[363067140,1748565057098,-2408.54,0.00023013,2]
[363067141,1748565057108,-740.37,0.00023013,2]
[363067142,1748565057118,-504.24,0.00023013,2]
[363067143,1748565057127,-1178.01,0.00023013,2]
[363067144,1748565057137,-687.18,0.00023013,2]
[363067145,1748565057145,-598.52,0.00023013,2]
[363067146,1748565057154,-430.0,0.00023013,2]
[363067147,1748565057163,-556.87,0.00023013,2]
[363067148,1748565057172,-1193.21,0.00023013,2]
[363067149,1748565057181,-430.0,0.00023013,2]
[363067150,1748565057190,-1220.26,0.00023013,2]
[363067151,1748565057202,-430.0,0.00023013,2]
[363067152,1748565057211,-2058.47,0.00023013,2]
[363067153,1748565057220,-613.5,0.00023013,2]
[363067154,1748565057230,-1480.27,0.00023013,2]
[363067155,1748565057239,-751.52,0.00023013,2]
[363067156,1748565057249,-1195.51,0.00023013,2]
[363067157,1748565057257,-430.0,0.00023013,2]
[363067158,1748565057266,-520.16,0.00023013,2]
[363067159,1748565057276,-1120.97,0.00023013,2]
[363067160,1748565057285,-430.0,0.00023013,2]
[363067161,1748565057294,-430.0,0.00023013,2]
[363067162,1748565057303,-430.0,0.00023013,2]
[363067163,1748565057312,-430.0,0.00023013,2]
[363067164,1748565057320,-793.82,0.00023013,2]
[363067165,1748565057329,-891.93,0.00023013,2]
[363067166,1748565057338,-430.0,0.00023013,2]
[363067167,1748565057347,-218.664617,0.00023013,7]
[363067168,1748565057359,-218.664617,0.00023013,7]
[363067169,1748565057371,-747.87,0.00023013,2]
[363067170,1748565057385,-430.0,0.00023013,2]
[363067171,1748565057394,-1500.0,0.00023025,2]
[363067172,1748565057403,-3000.0,0.00023088,2]
[363067173,1748565057413,-158.3971896,0.00023123,2]
[363067174,1748565057422,-153.0,0.00023123,2]
[363067175,1748565057431,-572.078714,0.00023123,2]
[363067176,1748565057440,-153.0,0.00023123,2]
[363067177,1748565057449,-306.3760041,0.00023123,2]
[363067178,1748565057459,-153.0,0.00023123,2]
[363067179,1748565057467,-158.3971896,0.00023123,2]
[363067180,1748565057476,-153.0,0.00023123,2]
[363067181,1748565057485,-572.078714,0.00023123,2]
[363067182,1748565057494,-158.3971896,0.00023123,2]
[363067183,1748565057504,-158.3971896,0.00023123,2]
[363067184,1748565057514,-1144.157428,0.00023123,2]
[363067185,1748565057523,-153.0,0.00023123,2]
[363067186,1748565057532,-153.0,0.00023123,2]
[363067187,1748565057541,-158.3971896,0.00023123,2]
[363067188,1748565057551,-674.7314252,0.00023123,2]
[363067189,1748565057560,-153.0,0.00023123,2]
[363067190,1748565057570,-334.2781663,0.00023123,2]
[363067191,1748565057579,-153.0,0.00023123,2]
[363067192,1748565057588,-153.0,0.00023123,2]
[363067193,1748565057597,-163.4784182,0.00023123,2]
[363067194,1748565057608,-500.0,0.00023155,2]
[363067195,1748565057618,-200.076931,0.000232,7]
[363067196,1748565057627,-200.076931,0.000232,7]
[363067197,1748565057636,-694.063326,0.000232,7]
[363067198,1748565057650,-694.063326,0.000232,7]
[363067199,1748565057660,-942.336492,0.000232,7]
[363067200,1748565057669,-942.336492,0.000232,7]
[363067201,1748565057678,-151.51476,0.000232,7]
[363067202,1748565057688,-151.51476,0.000232,7]
[363067203,1748565057697,-1184.26802109,0.00023224,2]
[363067204,1748565057706,-430.0,0.00023287,2]
[363067205,1748565057715,-430.0,0.00023287,2]
[363067206,1748565057725,-430.0,0.00023287,2]
[363067207,1748565057734,-430.0,0.00023287,2]
[363067208,1748565057744,-430.0,0.00023287,2]
[363067209,1748565057754,-430.0,0.00023287,2]
[363067210,1748565057764,-430.0,0.00023287,2]
[363067211,1748565057773,-430.0,0.00023287,2]
[363067212,1748565057783,-430.0,0.00023287,2]
[363067213,1748565057793,-433.91,0.00023287,2]
[363067214,1748565057803,-2408.54,0.00023287,2]
[363067215,1748565057812,-740.37,0.00023287,2]
[363067216,1748565057822,-504.24,0.00023287,2]
[363067217,1748565057832,-1178.01,0.00023287,2]
[363067218,1748565057842,-687.18,0.00023287,2]
[363067219,1748565057853,-598.52,0.00023287,2]
[363067220,1748565057863,-430.0,0.00023287,2]
[363067221,1748565057873,-556.87,0.00023287,2]
[363067222,1748565057883,-1193.21,0.00023287,2]
[363067223,1748565057893,-430.0,0.00023287,2]
[363067224,1748565057902,-1220.26,0.00023287,2]
[363067225,1748565057912,-430.0,0.00023287,2]
[363067226,1748565057922,-1769.24230783,0.00023287,2]
[363067227,1748565057954,-59.29488262,0.00023287,2]
[363067228,1748565057965,-229.93280955,0.00023287,2]
[363067229,1748565057975,-613.5,0.00023287,2]
[363067230,1748565057984,-1480.27,0.00023287,2]
[363067231,1748565057993,-751.52,0.00023287,2]
[363067232,1748565058002,-1195.51,0.00023287,2]
[363067233,1748565058019,-430.0,0.00023287,2]
[363067234,1748565058032,-520.16,0.00023287,2]
[363067235,1748565058042,-1120.97,0.00023287,2]
[363067236,1748565058052,-430.0,0.00023287,2]
[363067237,1748565058062,-250.89,0.00023287,2]
[363067238,1748565058194,-430.0,0.00023287,2]
[363067239,1748565058213,-40.47677479,0.00023287,2]
[363067240,1748565058229,-430.0,0.00019452,2]
[363067241,1748565058239,-214.36322521,0.00023287,2]
[363067242,1748565058248,-793.82,0.00023287,2]
[363067243,1748565058258,-891.93,0.00023287,2]
[363067244,1748565058267,-430.0,0.00023287,2]
[363067245,1748565058278,-419.30677479,0.00023287,2]
[363067249,1748565499290,1004.374185,0.00013699,2]
[363067277,1748565936136,-1770.08087914,0.00018064,2]
[363067280,1748566025154,-5000.0,0.00017784,2]
[363067281,1748566025177,-233.92612084,0.00017964,2]
[363067282,1748566025201,-160.0,0.00018062,2]
[363067283,1748566025223,-700.0,0.00018246,2]
[363067284,1748566025249,-666.9578486,0.00018726,2]
[363067285,1748566025271,-198.59767819,0.000189,2]
[363067286,1748566025292,-198.59767819,0.000189,2]
[363067287,1748566025314,-678.02767501,0.00019078,2]
[363067288,1748566025338,-200.0,0.00019176,2]
[363067289,1748566025360,-300.0,0.00019176,2]
[363067290,1748566025382,-160.0,0.00019177,2]
[363067291,1748566025405,-500.0,0.00019177,2]
[363067292,1748566025428,-615.27337592,0.00019177,2]
[363067293,1748566025454,-500.0,0.00019177,2]
[363067294,1748566025478,-472.59999222,0.00019177,2]
[363067295,1748566026140,-27.40000778,0.00019177,2]
[363067296,1748566026162,-315.50893822,0.00019177,2]
[363067297,1748566044254,-459.12011787,0.00017606,2]
[363067298,1748566044279,-166.25573952,0.00019177,2]
[363067299,1748566048096,-18.23532226,0.00019177,2]
[363067300,1748566048119,-499.02949801,0.00019177,2]
[363067301,1748566048142,-224.56398919,0.00019177,2]
[363067302,1748566048164,-500.0,0.00019177,2]
[363067303,1748566048188,-56.57324134,0.00019177,2]
[363067304,1748566145109,-159.0,0.00016438,3]
[363067305,1748566145130,-396.366242,0.00018984,2]
[363067306,1748566145152,-300.0,0.00019176,2]
[363067307,1748566145176,-443.42675866,0.00019177,2]
[363067308,1748566145201,-500.0,0.00019177,2]
[363067309,1748566145223,-500.0,0.00019177,2]
[363067310,1748566145244,-277.01640982,0.00019177,2]
[363067311,1748566145265,-563.5667068,0.00019177,2]
[363067312,1748566145288,-575.83789827,0.00019177,2]
[363067313,1748566145312,-500.0,0.00019177,2]
[363067314,1748566145335,-250.0,0.00019177,2]
[363067315,1748566145356,-430.0,0.00019178,2]
[363067316,1748566145376,-400.0,0.00019178,2]
[363067317,1748566145396,-400.86643722,0.00019178,2]
[363067318,1748566145417,-430.0,0.00019178,2]
[363067319,1748566145437,-384.05136376,0.00019178,2]
[363067320,1748566145458,-430.0,0.00019178,2]
[363067321,1748566145478,-430.0,0.00019178,2]
[363067322,1748566145500,-430.0,0.00019178,2]
[363067323,1748566145521,-270.0,0.00019178,2]
[363067324,1748566145544,-430.0,0.00019178,2]
[363067325,1748566145565,-430.0,0.00019178,2]
[363067326,1748566145587,-450.0,0.00019178,2]
[363067327,1748566145608,-240.05369715,0.00019178,2]
[363067328,1748566145630,-430.0,0.00019178,2]
[363067329,1748566145650,-470.0,0.00019178,2]
[363067330,1748566145670,-470.0,0.00019178,2]
[363067331,1748566145690,-430.0,0.00019178,2]
[363067332,1748566145711,-190.00000001,0.00019178,2]
[363067333,1748566145731,-430.0,0.00019178,2]
[363067334,1748566145751,-430.0,0.00019178,2]
[363067335,1748566145772,-430.0,0.00019178,2]
[363067336,1748566145795,-373.94532322,0.00019178,2]
[363067337,1748566145815,-430.0,0.00019178,2]
[363067338,1748566145837,-334.22231147,0.00019178,2]
[363067381,1748566232145,-300.0,0.00019177,2]
[363067383,1748566232154,-430.0,0.00019178,2]
[363067386,1748566232164,-430.0,0.00019178,2]
[363067388,1748566232174,-430.0,0.00019178,2]
[363067390,1748566232183,-430.0,0.00019178,2]
[363067392,1748566232193,-430.0,0.00019178,2]
[363067394,1748566232203,-430.0,0.00019178,2]
[363067409,1748566232349,-430.0,0.00019178,2]
[363067410,1748566232363,-430.0,0.00019178,2]
[363067411,1748566232373,-430.0,0.00019178,2]
[363067412,1748566232382,-430.0,0.00019178,2]
[363067414,1748566232391,-237.79115115,0.00019178,2]
[363067415,1748566232400,-238.58738268,0.00019178,2]
[363067416,1748566232409,-430.0,0.00019178,2]
[363067417,1748566232418,-430.0,0.00019178,2]
[363067418,1748566232428,-521.44848117,0.00019178,2]
[363067419,1748566232437,-298.8396089,0.00019178,2]
[363067420,1748566232446,-430.0,0.00019178,2]
[363067421,1748566232455,-430.0,0.00019178,2]
[363067422,1748566232464,-490.0,0.00019178,2]
[363067423,1748566232473,-492.01378937,0.00019178,2]
[363067424,1748566232482,-430.0,0.00019178,2]
[363067425,1748566232492,-430.0,0.00019178,2]
[363067426,1748566232501,-390.0,0.00019178,2]
[363067427,1748566232509,-430.0,0.00019178,2]
[363067428,1748566232518,-440.0,0.00019178,2]
[363067429,1748566232527,-430.0,0.00019178,2]
[363067430,1748566232535,-430.0,0.00019178,2]
[363067431,1748566232544,-430.0,0.00019178,2]
[363067432,1748566232553,-430.0,0.00019178,2]
[363067433,1748566232562,-430.0,0.00019178,2]
[363067434,1748566232572,-500.0,0.00019178,2]
[363067435,1748566232583,-430.0,0.00019178,2]
[363067436,1748566232592,-481.54501572,0.00019178,2]
[363067437,1748566232601,-430.0,0.00019178,2]
[363067438,1748566232614,-255.58352585,0.00019178,2]
[363067439,1748566232628,-174.41647415,0.00019178,2]
[363067440,1748566232637,-210.0,0.00019178,2]
[363067441,1748566232646,-450.0,0.00019178,2]
[363067442,1748566232655,-430.0,0.00019178,2]
[363067443,1748566232665,-430.0,0.00019178,2]
[363067444,1748566232674,-430.0,0.00019178,2]
[363067445,1748566232683,-430.0,0.00019178,2]
[363067446,1748566232692,-430.0,0.00019178,2]
[363067447,1748566232701,-430.0,0.00019178,2]
[363067448,1748566232710,-451.66724723,0.00019178,2]
[363067449,1748566232719,-500.0,0.00019178,2]
[363067450,1748566232727,-500.0,0.00019178,2]
[363067451,1748566232736,-500.0,0.00019178,2]
[363067452,1748566232746,-597.77415826,0.00019178,2]
[363067453,1748566232755,-430.0,0.00019178,2]
[363067454,1748566232764,-430.0,0.00019178,2]
[363067455,1748566232773,-430.0,0.00019178,2]
[363067456,1748566232782,-430.0,0.00019178,2]
[363067457,1748566232791,-430.0,0.00019178,2]
[363067458,1748566232800,-430.0,0.00019178,2]
[363067459,1748566232809,-430.0,0.00019178,2]